[Event "*** Titled Tuesday Blitz"]
[Site "Chess.com"]
[Date "2021.04.20"]
[Round "8"]
[White "AniJak"]
[Black "leopato"]
[Result "1-0"]
[WhiteElo "2283"]
[BlackElo "2123"]
[TimeControl "180+1"]
[EndTime "11:28:25 PDT"]
[Termination "AniJak won by resignation"]

1. e4 {[%clk 0:03:00.9]} 1... c5 {[%clk 0:02:54.6]} 2. Nf3 {[%clk 0:02:59.6]}
2... d6 {[%clk 0:02:52.3]} 3. d4 {[%clk 0:02:59.6]} 3... cxd4 {[%clk 0:02:53.2]}
4. Qxd4 {[%clk 0:02:58]} 4... Nf6 {[%clk 0:02:54.1]} 5. Nc3 {[%clk 0:02:57.4]}
5... Nc6 {[%clk 0:02:52.9]} 6. Bb5 {[%clk 0:02:57]} 6... Bd7 {[%clk 0:02:53.2]}
7. Bxc6 {[%clk 0:02:56.5]} 7... Bxc6 {[%clk 0:02:53.9]} 8. O-O {[%clk
0:02:56.8]} 8... g6 {[%clk 0:02:47.4]} 9. Bg5 {[%clk 0:02:56]} 9... Bg7 {[%clk
0:02:46.5]} 10. Rfe1 {[%clk 0:02:52.6]} 10... O-O {[%clk 0:02:45.8]} 11. Qd2
{[%clk 0:02:49.5]} 11... b5 {[%clk 0:02:36.5]} 12. Rad1 {[%clk 0:02:41.8]} 12...
b4 {[%clk 0:02:34.8]} 13. Nd5 {[%clk 0:02:36.2]} 13... Bxd5 {[%clk 0:02:19.6]}
14. exd5 {[%clk 0:02:35.1]} 14... Rc8 {[%clk 0:02:02]} 15. Qxb4 {[%clk
0:02:25.8]} 15... Rxc2 {[%clk 0:02:00]} 16. Nd4 {[%clk 0:02:14.5]} 16... Nxd5
{[%clk 0:01:17]} 17. Qa4 {[%clk 0:02:02.5]} 17... Rc5 {[%clk 0:01:07.1]} 18. b4
{[%clk 0:01:59.7]} 18... Nc3 {[%clk 0:00:57.6]} 19. Qa6 {[%clk 0:01:48.5]} 19...
Rxg5 {[%clk 0:00:55.2]} 20. Nc6 {[%clk 0:01:46.1]} 20... Qb6 {[%clk 0:00:51.7]}
21. Nxe7+ {[%clk 0:01:43.7]} 21... Kh8 {[%clk 0:00:51]} 22. Qxb6 {[%clk
0:01:41.8]} 22... axb6 {[%clk 0:00:51.9]} 23. Rd2 {[%clk 0:01:41.2]} 23... h6
{[%clk 0:00:42.3]} 24. f4 {[%clk 0:01:31.8]} 24... Rb5 {[%clk 0:00:38.8]} 25. a3
{[%clk 0:01:31.7]} 25... Kh7 {[%clk 0:00:36.2]} 26. Nc6 {[%clk 0:01:06.1]} 26...
Rc8 {[%clk 0:00:34.9]} 27. Na7 {[%clk 0:01:02.4]} 27... Rbc5 {[%clk 0:00:30.1]}
28. bxc5 {[%clk 0:01:01.7]} 28... Rxc5 {[%clk 0:00:29.7]} 29. Rxd6 {[%clk
0:01:00]} 29... Rc4 {[%clk 0:00:27.4]} 30. g3 {[%clk 0:00:54.5]} 30... Bd4+
{[%clk 0:00:24.4]} 31. Kg2 {[%clk 0:00:53.7]} 31... Bc5 {[%clk 0:00:24.1]} 32.
Rd7 {[%clk 0:00:52.7]} 32... Kg7 {[%clk 0:00:23.8]} 33. Re8 {[%clk 0:00:28.6]}
33... Ne4 {[%clk 0:00:22]} 34. Nb5 {[%clk 0:00:23.7]} 34... Rc2+ {[%clk
0:00:19.1]} 35. Kf3 {[%clk 0:00:21.8]} 35... Nd2+ {[%clk 0:00:17.4]} 36. Kg4
{[%clk 0:00:21.1]} 36... h5+ {[%clk 0:00:16.9]} 37. Kh3 {[%clk 0:00:20.4]} 37...
Nf3 {[%clk 0:00:16.4]} 38. g4 {[%clk 0:00:20.1]} 38... Rxh2+ {[%clk 0:00:12.6]}
39. Kg3 {[%clk 0:00:20.4]} 39... hxg4 {[%clk 0:00:11.8]} 40. Kxg4 {[%clk
0:00:18.6]} 40... Nh4 {[%clk 0:00:10.4]} 41. Kg3 {[%clk 0:00:18.5]} 41... Rh1
{[%clk 0:00:08]} 42. Nd6 {[%clk 0:00:17.9]} 42... Bxd6 {[%clk 0:00:05.4]} 43.
Kf2 {[%clk 0:00:14.3]} 43... Nf5 {[%clk 0:00:04.2]} 44. Rc8 {[%clk 0:00:12.1]}
44... Bxf4 {[%clk 0:00:03.8]} 45. Rc6 {[%clk 0:00:10.9]} 45... Rh2+ {[%clk
0:00:03.4]} 46. Kf3 {[%clk 0:00:10.4]} 46... b5 {[%clk 0:00:04.3]} 47. Kxf4
{[%clk 0:00:10.5]} 47... Rf2+ {[%clk 0:00:03.9]} 48. Ke4 {[%clk 0:00:09.6]}
48... Ng3+ {[%clk 0:00:03.2]} 49. Ke3 {[%clk 0:00:09.7]} 49... Rf5 {[%clk
0:00:02.9]} 50. Rcc7 {[%clk 0:00:09.4]} 50... Nh5 {[%clk 0:00:03]} 51. Rb7
{[%clk 0:00:09.2]} 51... Nf6 {[%clk 0:00:02]} 52. Rdc7 {[%clk 0:00:08.7]} 52...
Kh6 {[%clk 0:00:02.9]} 53. Rxf7 {[%clk 0:00:08.4]} 53... Nd5+ {[%clk 0:00:02.8]}
54. Kd4 {[%clk 0:00:08.2]} 54... Rxf7 {[%clk 0:00:02.1]} 55. Rxf7 {[%clk
0:00:08.3]} 55... Nc3 {[%clk 0:00:02.6]} 56. Kxc3 {[%clk 0:00:07.9]} 56... Kh5
{[%clk 0:00:03.1]} 57. Re7 {[%clk 0:00:07.7]} 57... g5 {[%clk 0:00:04]} 58. Kb4
{[%clk 0:00:08.1]} 58... g4 {[%clk 0:00:04.9]} 59. Kxb5 {[%clk 0:00:09]} 59...
Kh4 {[%clk 0:00:05.8]} 60. Re1 {[%clk 0:00:09.4]} 60... Kh3 {[%clk 0:00:06.7]}
61. Rc1 {[%clk 0:00:09.9]} 61... Kg2 {[%clk 0:00:07.6]} 62. a4 {[%clk
0:00:10.8]} 62... Kf2 {[%clk 0:00:08.1]} 63. a5 {[%clk 0:00:11.7]} 63... Ke3
{[%clk 0:00:09]} 64. a6 {[%clk 0:00:12.5]} 64... g3 {[%clk 0:00:09.9]} 65. a7
{[%clk 0:00:12.6]} 65... Kd2 {[%clk 0:00:10.8]} 66. Ra1 {[%clk 0:00:12.4]} 66...
g2 {[%clk 0:00:10.9]} 67. a8=Q {[%clk 0:00:13.3]} 67... Kc3 {[%clk 0:00:11.5]}
68. Qc6+ {[%clk 0:00:12.9]} 68... Kb3 {[%clk 0:00:11.6]} 69. Qxg2 {[%clk
0:00:12.3]} 69... Kc3 {[%clk 0:00:09.5]} 70. Qf3+ {[%clk 0:00:12.6]} 1-0

[Event "*** Titled Tuesday Blitz"]
[Site "Chess.com"]
[Date "2021.04.20"]
[Round "8"]
[White "PotapovaM"]
[Black "Grineva_Marianna"]
[Result "1-0"]
[WhiteElo "2474"]
[BlackElo "2219"]
[TimeControl "180+1"]
[EndTime "11:28:42 PDT"]
[Termination "PotapovaM won by resignation"]

1. d4 {[%clk 0:02:53.8]} 1... d6 {[%clk 0:02:59.2]} 2. e4 {[%clk 0:02:53.6]}
2... Nf6 {[%clk 0:02:57]} 3. Nc3 {[%clk 0:02:54.3]} 3... g6 {[%clk 0:02:56.9]}
4. Bg5 {[%clk 0:02:50.1]} 4... Bg7 {[%clk 0:02:56.1]} 5. e5 {[%clk 0:02:50.4]}
5... Nfd7 {[%clk 0:02:44.8]} 6. exd6 {[%clk 0:02:50]} 6... cxd6 {[%clk
0:02:44.6]} 7. Qd2 {[%clk 0:02:50.7]} 7... Nf6 {[%clk 0:02:35.9]} 8. Nf3 {[%clk
0:02:49.3]} 8... Nc6 {[%clk 0:02:34.5]} 9. Be2 {[%clk 0:02:49.1]} 9... Bf5
{[%clk 0:02:34.7]} 10. O-O {[%clk 0:02:45.4]} 10... O-O {[%clk 0:02:34.6]} 11.
Rfe1 {[%clk 0:02:45.1]} 11... Rc8 {[%clk 0:02:31]} 12. a3 {[%clk 0:02:39.8]}
12... Re8 {[%clk 0:02:23.8]} 13. h3 {[%clk 0:02:39.1]} 13... e5 {[%clk
0:02:09.3]} 14. Nd5 {[%clk 0:02:26.5]} 14... Nxd4 {[%clk 0:01:42]} 15. Nxd4
{[%clk 0:02:23]} 15... exd4 {[%clk 0:01:41]} 16. Bd3 {[%clk 0:01:43.1]} 16...
Be6 {[%clk 0:01:08.5]} 17. Bb5 {[%clk 0:01:13.8]} 17... Rf8 {[%clk 0:00:41.9]}
18. Nf4 {[%clk 0:01:12.7]} 18... Rc5 {[%clk 0:00:33.8]} 19. Bf1 {[%clk
0:01:03.9]} 19... Bf5 {[%clk 0:00:18.1]} 20. Bd3 {[%clk 0:00:59.3]} 20... Qc8
{[%clk 0:00:16.3]} 21. Rac1 {[%clk 0:00:53.3]} 21... Bxd3 {[%clk 0:00:13.6]} 22.
Nxd3 {[%clk 0:00:54.2]} 22... Rf5 {[%clk 0:00:12.8]} 23. Nb4 {[%clk 0:00:47.7]}
23... Qc5 {[%clk 0:00:12]} 24. Bf4 {[%clk 0:00:42.9]} 24... a5 {[%clk 0:00:11]}
25. Nd3 {[%clk 0:00:42.5]} 25... Qd5 {[%clk 0:00:11.4]} 26. Bh2 {[%clk
0:00:41.5]} 26... Ne4 {[%clk 0:00:10.4]} 27. Qd1 {[%clk 0:00:37.3]} 27... Nc5
{[%clk 0:00:08.5]} 28. Nf4 {[%clk 0:00:34.2]} 28... Qc6 {[%clk 0:00:07.9]} 29.
Qg4 {[%clk 0:00:25.9]} 29... Rc8 {[%clk 0:00:07.9]} 30. h4 {[%clk 0:00:20.6]}
30... Ne4 {[%clk 0:00:08]} 31. Nd3 {[%clk 0:00:17.9]} 31... Qd5 {[%clk
0:00:05.2]} 32. Qxe4 {[%clk 0:00:17.5]} 32... Qxe4 {[%clk 0:00:04.8]} 33. Rxe4
{[%clk 0:00:18.4]} 33... d5 {[%clk 0:00:03.8]} 34. Re2 {[%clk 0:00:18.5]} 34...
b5 {[%clk 0:00:03]} 35. b4 {[%clk 0:00:18.2]} 35... Rf6 {[%clk 0:00:03.3]} 36.
Kf1 {[%clk 0:00:15.1]} 36... Ra6 {[%clk 0:00:03.7]} 37. Be5 {[%clk 0:00:14]}
37... axb4 {[%clk 0:00:03.8]} 38. Bxg7 {[%clk 0:00:12.9]} 38... Kxg7 {[%clk
0:00:04.7]} 39. axb4 {[%clk 0:00:13.3]} 39... Ra3 {[%clk 0:00:03.9]} 40. Rd2
{[%clk 0:00:12.6]} 40... Rac3 {[%clk 0:00:04]} 41. Ke2 {[%clk 0:00:12.5]} 41...
f5 {[%clk 0:00:04]} 42. f4 {[%clk 0:00:12.1]} 42... Kf6 {[%clk 0:00:04.5]} 43.
Kf3 {[%clk 0:00:12]} 43... Ra3 {[%clk 0:00:04.7]} 44. Kf2 {[%clk 0:00:11.8]}
44... Ra6 {[%clk 0:00:04.7]} 45. Nc5 {[%clk 0:00:11.7]} 45... Ra3 {[%clk
0:00:03.8]} 46. Rxd4 {[%clk 0:00:11.2]} 46... Rc3 {[%clk 0:00:03.9]} 47. Rd3
{[%clk 0:00:10.3]} 47... Rc4 {[%clk 0:00:04.2]} 48. c3 {[%clk 0:00:10.9]} 48...
Rxf4+ {[%clk 0:00:04]} 49. Rf3 {[%clk 0:00:10.8]} 49... Rxh4 {[%clk 0:00:03.9]}
50. Rd1 {[%clk 0:00:11.1]} 50... Rc4 {[%clk 0:00:03.6]} 51. Rxd5 {[%clk
0:00:10.7]} 51... Kg5 {[%clk 0:00:03.9]} 52. Rd7 {[%clk 0:00:10.1]} 52... Re8
{[%clk 0:00:03.5]} 53. Rxh7 {[%clk 0:00:09.1]} 53... Rg4 {[%clk 0:00:03.2]} 54.
Rg3 {[%clk 0:00:07.6]} 54... Rd8 {[%clk 0:00:02.8]} 55. Rxg4+ {[%clk 0:00:07.4]}
55... Kxg4 {[%clk 0:00:03.7]} 56. Rh3 {[%clk 0:00:06.8]} 56... Rd2+ {[%clk
0:00:03.7]} 57. Kg1 {[%clk 0:00:07.1]} 57... Rc2 {[%clk 0:00:03.8]} 58. Rf3
{[%clk 0:00:06.5]} 58... Rc1+ {[%clk 0:00:04.1]} 59. Kh2 {[%clk 0:00:06.3]}
59... Rc2 {[%clk 0:00:04.1]} 60. Rg3+ {[%clk 0:00:06.5]} 60... Kh5 {[%clk
0:00:03.8]} 61. Ne6 {[%clk 0:00:06.2]} 61... Rc1 {[%clk 0:00:02.2]} 62. Nf4+
{[%clk 0:00:06.1]} 62... Kh6 {[%clk 0:00:02.6]} 63. Rxg6+ {[%clk 0:00:06.5]}
63... Kh7 {[%clk 0:00:03.5]} 64. Rg3 {[%clk 0:00:07.4]} 64... Rc2 {[%clk
0:00:03.6]} 65. Nd5 {[%clk 0:00:07.4]} 65... Kh6 {[%clk 0:00:03.9]} 66. Ne3
{[%clk 0:00:07.3]} 66... f4 {[%clk 0:00:03.8]} 67. Nxc2 {[%clk 0:00:07.1]} 67...
fxg3+ {[%clk 0:00:04.3]} 68. Kxg3 {[%clk 0:00:08]} 68... Kg5 {[%clk 0:00:05]}
69. Nd4 {[%clk 0:00:08.3]} 69... Kf6 {[%clk 0:00:04.7]} 70. Nxb5 {[%clk
0:00:09.2]} 70... Ke5 {[%clk 0:00:05.6]} 71. Nd4 {[%clk 0:00:10]} 71... Kd5
{[%clk 0:00:06.1]} 72. Ne2 {[%clk 0:00:10.9]} 72... Kc4 {[%clk 0:00:07]} 73. Kf3
{[%clk 0:00:11.4]} 73... Kb5 {[%clk 0:00:07.3]} 74. g4 {[%clk 0:00:12.2]} 74...
Kc4 {[%clk 0:00:08.2]} 75. g5 {[%clk 0:00:13.1]} 75... Kd5 {[%clk 0:00:08.5]}
76. g6 {[%clk 0:00:14]} 76... Ke6 {[%clk 0:00:09.1]} 77. Nf4+ {[%clk 0:00:13.7]}
77... Kf6 {[%clk 0:00:08.8]} 78. Kg4 {[%clk 0:00:14.3]} 78... Kg7 {[%clk
0:00:09]} 79. b5 {[%clk 0:00:15.2]} 79... Kg8 {[%clk 0:00:09.6]} 80. b6 {[%clk
0:00:16.1]} 80... Kf8 {[%clk 0:00:10.5]} 81. b7 {[%clk 0:00:16.6]} 1-0

[Event "*** Titled Tuesday Blitz"]
[Site "Chess.com"]
[Date "2021.04.20"]
[Round "8"]
[White "vinniethepooh"]
[Black "nikitakhoroshev"]
[Result "1/2-1/2"]
[WhiteElo "2745"]
[BlackElo "2640"]
[TimeControl "180+1"]
[EndTime "11:28:45 PDT"]
[Termination "Game drawn - insufficient material"]

1. d4 {[%clk 0:03:00.9]} 1... Nf6 {[%clk 0:02:52.9]} 2. c4 {[%clk 0:03:01.2]}
2... e6 {[%clk 0:02:53.2]} 3. Nc3 {[%clk 0:03:01.7]} 3... d5 {[%clk 0:02:53.5]}
4. cxd5 {[%clk 0:03:01.8]} 4... exd5 {[%clk 0:02:54.4]} 5. Bg5 {[%clk
0:03:02.3]} 5... Bb4 {[%clk 0:02:54.5]} 6. e3 {[%clk 0:03:02.1]} 6... h6 {[%clk
0:02:54.9]} 7. Bh4 {[%clk 0:03:02.3]} 7... g5 {[%clk 0:02:54.8]} 8. Bg3 {[%clk
0:03:02.1]} 8... Ne4 {[%clk 0:02:55.1]} 9. Ne2 {[%clk 0:02:57.3]} 9... h5 {[%clk
0:02:55.1]} 10. h4 {[%clk 0:02:33.9]} 10... Nxg3 {[%clk 0:02:52.2]} 11. Nxg3
{[%clk 0:02:33.9]} 11... gxh4 {[%clk 0:02:52.5]} 12. Nxh5 {[%clk 0:02:30]} 12...
c6 {[%clk 0:02:52.3]} 13. Be2 {[%clk 0:02:13.3]} 13... Qg5 {[%clk 0:02:48.5]}
14. Nf4 {[%clk 0:02:06.5]} 14... Bd6 {[%clk 0:02:42.7]} 15. g3 {[%clk
0:01:56.1]} 15... Qf6 {[%clk 0:02:36]} 16. Nh5 {[%clk 0:01:41.1]} 16... Rxh5
{[%clk 0:02:30.8]} 17. Bxh5 {[%clk 0:01:42]} 17... hxg3 {[%clk 0:02:30.9]} 18.
Qf3 {[%clk 0:01:41]} 18... gxf2+ {[%clk 0:02:23.9]} 19. Qxf2 {[%clk 0:01:41.6]}
19... Qxf2+ {[%clk 0:02:13]} 20. Kxf2 {[%clk 0:01:42.5]} 20... Be6 {[%clk
0:02:13.3]} 21. e4 {[%clk 0:01:31.8]} 21... dxe4 {[%clk 0:02:10.7]} 22. Nxe4
{[%clk 0:01:30.6]} 22... Be7 {[%clk 0:02:11.3]} 23. Rae1 {[%clk 0:01:19.8]}
23... Kd7 {[%clk 0:02:04]} 24. Bxf7 {[%clk 0:00:58.1]} 24... Bf5 {[%clk
0:01:31.1]} 25. Rh8 {[%clk 0:00:49.6]} 25... b6 {[%clk 0:01:15.7]} 26. Be8+
{[%clk 0:00:35.2]} 26... Kc7 {[%clk 0:01:13.2]} 27. Ng3 {[%clk 0:00:34.6]} 27...
Bf6 {[%clk 0:01:13.3]} 28. Rf8 {[%clk 0:00:24.2]} 28... Bxd4+ {[%clk 0:01:13.3]}
29. Kf3 {[%clk 0:00:24.9]} 29... Bc8 {[%clk 0:01:13]} 30. Rf7+ {[%clk
0:00:22.3]} 30... Kd8 {[%clk 0:01:08.4]} 31. Ne4 {[%clk 0:00:12.8]} 31... Be6
{[%clk 0:00:48.8]} 32. Rh7 {[%clk 0:00:08.4]} 32... Nd7 {[%clk 0:00:41.5]} 33.
Bxd7 {[%clk 0:00:06.5]} 33... Bxd7 {[%clk 0:00:42.4]} 34. Ng5 {[%clk 0:00:03.9]}
34... Rc8 {[%clk 0:00:20.5]} 35. Rd1 {[%clk 0:00:03.5]} 35... c5 {[%clk
0:00:20.3]} 36. Re1 {[%clk 0:00:03.7]} 36... Rc6 {[%clk 0:00:19.6]} 37. Nf7+
{[%clk 0:00:03.6]} 37... Kc7 {[%clk 0:00:19.7]} 38. Ne5 {[%clk 0:00:03.8]} 38...
Rf6+ {[%clk 0:00:18.9]} 39. Kg3 {[%clk 0:00:02.6]} 39... Bxe5+ {[%clk 0:00:18]}
40. Rxe5 {[%clk 0:00:03.5]} 40... Rd6 {[%clk 0:00:18.4]} 41. Kf3 {[%clk
0:00:04.1]} 41... a5 {[%clk 0:00:16.8]} 42. Ke3 {[%clk 0:00:04.2]} 42... a4
{[%clk 0:00:17.1]} 43. Re4 {[%clk 0:00:03.2]} 43... b5 {[%clk 0:00:15.7]} 44.
Re5 {[%clk 0:00:03.7]} 44... Kb6 {[%clk 0:00:15.3]} 45. Rhh5 {[%clk 0:00:03.9]}
45... c4 {[%clk 0:00:15.4]} 46. Rd5 {[%clk 0:00:04.3]} 46... Re6+ {[%clk
0:00:14.7]} 47. Kd2 {[%clk 0:00:04.3]} 47... Bc6 {[%clk 0:00:14.7]} 48. Rde5
{[%clk 0:00:04.9]} 48... Rd6+ {[%clk 0:00:14.9]} 49. Kc1 {[%clk 0:00:05.5]}
49... Rg6 {[%clk 0:00:14.3]} 50. Re1 {[%clk 0:00:04.4]} 50... b4 {[%clk
0:00:14]} 51. Rhe5 {[%clk 0:00:04.6]} 51... Rg2 {[%clk 0:00:11]} 52. R5e2 {[%clk
0:00:04.3]} 52... Rg3 {[%clk 0:00:10.8]} 53. Rd1 {[%clk 0:00:04.6]} 53... c3
{[%clk 0:00:10.6]} 54. bxc3 {[%clk 0:00:04.6]} 54... Rxc3+ {[%clk 0:00:11.5]}
55. Rc2 {[%clk 0:00:04.5]} 55... Rxc2+ {[%clk 0:00:09.3]} 56. Kxc2 {[%clk
0:00:05.4]} 56... Kc5 {[%clk 0:00:09.7]} 57. Rg1 {[%clk 0:00:05]} 57... Bd5
{[%clk 0:00:10]} 58. Kb2 {[%clk 0:00:04.9]} 58... a3+ {[%clk 0:00:08.8]} 59. Kb1
{[%clk 0:00:05.1]} 59... b3 {[%clk 0:00:09.3]} 60. axb3 {[%clk 0:00:05.6]} 60...
Bxb3 {[%clk 0:00:10.2]} 61. Rg3 {[%clk 0:00:06.2]} 61... Kb4 {[%clk 0:00:10.3]}
62. Rg4+ {[%clk 0:00:06.8]} 62... Bc4 {[%clk 0:00:10.7]} 63. Ka1 {[%clk
0:00:07.1]} 63... Kb3 {[%clk 0:00:10.5]} 64. Rg7 {[%clk 0:00:07.3]} 64... Kb4
{[%clk 0:00:10.7]} 65. Rb7+ {[%clk 0:00:07.7]} 65... Kc3 {[%clk 0:00:10.9]} 66.
Rb8 {[%clk 0:00:08.1]} 66... a2 {[%clk 0:00:11.3]} 67. Rb7 {[%clk 0:00:07.6]}
67... Kd4 {[%clk 0:00:11.6]} 68. Kb2 {[%clk 0:00:08.2]} 68... Bd5 {[%clk
0:00:12.1]} 69. Rc7 {[%clk 0:00:08.4]} 69... Ke5 {[%clk 0:00:12.5]} 70. Re7+
{[%clk 0:00:08.7]} 70... Be6 {[%clk 0:00:12.9]} 71. Rc7 {[%clk 0:00:08.7]} 71...
Kf6 {[%clk 0:00:13.2]} 72. Rc1 {[%clk 0:00:09.1]} 72... Bf7 {[%clk 0:00:13.2]}
73. Rf1+ {[%clk 0:00:08.9]} 73... Kg7 {[%clk 0:00:13.6]} 74. Kc3 {[%clk
0:00:09.5]} 74... Bg8 {[%clk 0:00:13.7]} 75. Kd4 {[%clk 0:00:09.2]} 75... Kh8
{[%clk 0:00:14.1]} 76. Ke5 {[%clk 0:00:08.4]} 76... Bh7 {[%clk 0:00:14.4]} 77.
Rh1 {[%clk 0:00:08.4]} 77... Kg7 {[%clk 0:00:13.8]} 78. Rg1+ {[%clk 0:00:08.3]}
78... Kh8 {[%clk 0:00:13]} 79. Ra1 {[%clk 0:00:07.1]} 79... Bb1 {[%clk
0:00:12.7]} 80. Rxa2 {[%clk 0:00:07.3]} 80... Bxa2 {[%clk 0:00:12.8]} 1/2-1/2

[Event "*** Titled Tuesday Blitz"]
[Site "Chess.com"]
[Date "2021.04.20"]
[Round "8"]
[White "iulik86"]
[Black "Hangar-18"]
[Result "1-0"]
[WhiteElo "2567"]
[BlackElo "2344"]
[TimeControl "180+1"]
[EndTime "11:28:50 PDT"]
[Termination "iulik86 won by checkmate"]

1. e4 {[%clk 0:02:48.2]} 1... c6 {[%clk 0:02:59.7]} 2. d4 {[%clk 0:02:45.4]}
2... d5 {[%clk 0:03:00.1]} 3. e5 {[%clk 0:02:45.2]} 3... c5 {[%clk 0:02:59.8]}
4. Nf3 {[%clk 0:02:42.5]} 4... Nc6 {[%clk 0:02:55.4]} 5. dxc5 {[%clk 0:02:35.8]}
5... Bg4 {[%clk 0:02:53.6]} 6. Bb5 {[%clk 0:02:30.2]} 6... e6 {[%clk 0:02:44.2]}
7. Be3 {[%clk 0:02:27.2]} 7... Nh6 {[%clk 0:02:21.2]} 8. c3 {[%clk 0:02:21.4]}
8... Nf5 {[%clk 0:02:18.6]} 9. Bd4 {[%clk 0:02:21.4]} 9... Be7 {[%clk 0:01:57]}
10. Nbd2 {[%clk 0:02:11]} 10... Rc8 {[%clk 0:01:53.1]} 11. Qa4 {[%clk
0:02:08.7]} 11... Bxf3 {[%clk 0:01:47.5]} 12. Nxf3 {[%clk 0:02:07.7]} 12... a6
{[%clk 0:01:43.8]} 13. Bd3 {[%clk 0:02:04.5]} 13... O-O {[%clk 0:01:40.5]} 14.
Bxf5 {[%clk 0:02:03.2]} 14... exf5 {[%clk 0:01:39]} 15. O-O {[%clk 0:02:02.9]}
15... Qc7 {[%clk 0:01:25.8]} 16. Rfe1 {[%clk 0:02:01.6]} 16... Nd8 {[%clk
0:01:26.1]} 17. b4 {[%clk 0:01:57.5]} 17... Ne6 {[%clk 0:01:26.6]} 18. Qc2
{[%clk 0:01:56.4]} 18... g6 {[%clk 0:01:25.7]} 19. Qd2 {[%clk 0:01:51.4]} 19...
Rfe8 {[%clk 0:01:19.7]} 20. h4 {[%clk 0:01:50.9]} 20... Bf8 {[%clk 0:01:18.7]}
21. h5 {[%clk 0:01:49.7]} 21... f4 {[%clk 0:01:07.2]} 22. hxg6 {[%clk
0:01:44.3]} 22... hxg6 {[%clk 0:01:05.2]} 23. Nh2 {[%clk 0:01:40]} 23... Qe7
{[%clk 0:00:39.8]} 24. Ng4 {[%clk 0:01:38.5]} 24... Qh4 {[%clk 0:00:36.7]} 25.
Nf6+ {[%clk 0:01:37.6]} 25... Kg7 {[%clk 0:00:37.1]} 26. Nxe8+ {[%clk
0:01:17.6]} 26... Rxe8 {[%clk 0:00:38]} 27. Qd3 {[%clk 0:01:16.9]} 27... Be7
{[%clk 0:00:36.3]} 28. Kf1 {[%clk 0:01:10.4]} 28... Qh1+ {[%clk 0:00:33.8]} 29.
Ke2 {[%clk 0:01:10.4]} 29... Qxg2 {[%clk 0:00:33.8]} 30. Qf3 {[%clk 0:01:09.2]}
30... Qxf3+ {[%clk 0:00:29.3]} 31. Kxf3 {[%clk 0:01:09]} 31... g5 {[%clk
0:00:29.7]} 32. Kg4 {[%clk 0:01:07.8]} 32... Kg6 {[%clk 0:00:30.1]} 33. Rh1
{[%clk 0:01:01.7]} 33... Nxd4 {[%clk 0:00:21]} 34. cxd4 {[%clk 0:01:01.5]} 34...
f6 {[%clk 0:00:21.5]} 35. Rae1 {[%clk 0:00:57.3]} 35... f5+ {[%clk 0:00:21.4]}
36. Kf3 {[%clk 0:00:57.5]} 36... Rg8 {[%clk 0:00:17.3]} 37. e6 {[%clk
0:00:51.9]} 37... Bf6 {[%clk 0:00:16.5]} 38. Rd1 {[%clk 0:00:42.2]} 38... Re8
{[%clk 0:00:15.5]} 39. Rhe1 {[%clk 0:00:42.3]} 39... Bg7 {[%clk 0:00:15]} 40. e7
{[%clk 0:00:37.5]} 40... Bf6 {[%clk 0:00:14.6]} 41. Re6 {[%clk 0:00:35.2]} 41...
Kf7 {[%clk 0:00:14.9]} 42. Rd6 {[%clk 0:00:34.8]} 42... Rxe7 {[%clk 0:00:13.4]}
43. Rxd5 {[%clk 0:00:35]} 43... Re4 {[%clk 0:00:13.4]} 44. Rd7+ {[%clk
0:00:33.8]} 44... Kg6 {[%clk 0:00:12.8]} 45. Rxb7 {[%clk 0:00:25.7]} 45... g4+
{[%clk 0:00:13.7]} 46. Kg2 {[%clk 0:00:25.6]} 46... f3+ {[%clk 0:00:13.6]} 47.
Kg1 {[%clk 0:00:25.7]} 47... Bxd4 {[%clk 0:00:13.7]} 48. c6 {[%clk 0:00:23.3]}
48... g3 {[%clk 0:00:13.8]} 49. Rxd4 {[%clk 0:00:13.8]} 49... Rxd4 {[%clk
0:00:12.9]} 50. fxg3 {[%clk 0:00:13.8]} 50... Rc4 {[%clk 0:00:12.7]} 51. Rb6
{[%clk 0:00:13.4]} 51... Kg5 {[%clk 0:00:12.8]} 52. Kf2 {[%clk 0:00:13.2]} 52...
Kg4 {[%clk 0:00:13.2]} 53. Rxa6 {[%clk 0:00:11.3]} 53... Rxb4 {[%clk 0:00:13.1]}
54. c7 {[%clk 0:00:11.1]} 54... Rb2+ {[%clk 0:00:12.7]} 55. Kf1 {[%clk
0:00:10.8]} 55... Rc2 {[%clk 0:00:12.8]} 56. Rg6+ {[%clk 0:00:10.7]} 56... Kh5
{[%clk 0:00:12.1]} 57. Rg7 {[%clk 0:00:10.7]} 57... Kh6 {[%clk 0:00:09.7]} 58.
Rd7 {[%clk 0:00:06.9]} 58... Kg5 {[%clk 0:00:09.1]} 59. a4 {[%clk 0:00:06.8]}
59... Kg4 {[%clk 0:00:09.2]} 60. Rg7+ {[%clk 0:00:06.8]} 60... Kh3 {[%clk
0:00:09.3]} 61. a5 {[%clk 0:00:06.1]} 61... Rc1+ {[%clk 0:00:07.8]} 62. Kf2
{[%clk 0:00:05.9]} 62... Rc3 {[%clk 0:00:08.2]} 63. a6 {[%clk 0:00:05.4]} 63...
Rc2+ {[%clk 0:00:08.3]} 64. Kxf3 {[%clk 0:00:05.6]} 64... Rc3+ {[%clk
0:00:08.8]} 65. Kf4 {[%clk 0:00:06]} 65... Rc4+ {[%clk 0:00:09.1]} 66. Kxf5
{[%clk 0:00:06.3]} 66... Rc5+ {[%clk 0:00:09.5]} 67. Ke6 {[%clk 0:00:06.5]}
67... Rc6+ {[%clk 0:00:10]} 68. Kd7 {[%clk 0:00:06.8]} 68... Rxa6 {[%clk
0:00:10.5]} 69. c8=Q {[%clk 0:00:06.3]} 69... Ra7+ {[%clk 0:00:10.9]} 70. Kd8+
{[%clk 0:00:07.2]} 70... Kg2 {[%clk 0:00:09.9]} 71. g4 {[%clk 0:00:08.1]} 71...
Rxg7 {[%clk 0:00:08.9]} 72. Qf5 {[%clk 0:00:08.7]} 72... Kg3 {[%clk 0:00:08.7]}
73. g5 {[%clk 0:00:08.9]} 73... Kh4 {[%clk 0:00:08.7]} 74. g6 {[%clk 0:00:09.2]}
74... Rg8+ {[%clk 0:00:08.2]} 75. Ke7 {[%clk 0:00:08.5]} 75... Rg7+ {[%clk
0:00:08.7]} 76. Kf8 {[%clk 0:00:08.2]} 76... Ra7 {[%clk 0:00:08.9]} 77. g7
{[%clk 0:00:08.1]} 77... Ra8+ {[%clk 0:00:09.7]} 78. Kf7 {[%clk 0:00:08.5]}
78... Ra7+ {[%clk 0:00:10]} 79. Kg6 {[%clk 0:00:08.7]} 79... Ra6+ {[%clk
0:00:10.3]} 80. Qf6+ {[%clk 0:00:09]} 80... Rxf6+ {[%clk 0:00:09.9]} 81. Kxf6
{[%clk 0:00:09.9]} 81... Kh5 {[%clk 0:00:10.4]} 82. g8=Q {[%clk 0:00:09.4]}
82... Kh4 {[%clk 0:00:10.5]} 83. Qg2 {[%clk 0:00:09]} 83... Kh5 {[%clk
0:00:10.3]} 84. Qg5# {[%clk 0:00:09.8]} 1-0